bitfinex-derivatives/quotes_ETHF0:USTF0_20260314
["timestamp","ask_amount","ask_price","bid_price","bid_amount"]
[1773468778182,5.73006743,2088.6,2087.9,31.354]
[1773468778381,7.08412623,2088.5,2087.9,31.354]
[1773468778682,1.3540588,2088.5,2087.9,31.354]
[1773468790081,5.72833017,2088.6,2087.9,31.354]
[1773468790387,0.00483573,2088.7,2087.9,32.85921617]
[1773468791184,5.59475634,2088.8,2088.1,1.50521617]
[1773468791394,1.3614717,2089.1,2088.2,1.50521617]
[1773468791589,1.3614717,2089.1,2088.0,9.00449729]
[1773468791790,1.3614717,2089.1,2088.0,1.50521617]
[1773468792188,1.36150479,2088.9,2087.9,38.85328112]
[1773468794994,1.36150479,2088.9,2088.0,1.50521617]
[1773468819424,1.35278543,2088.8,2087.9,38.85328112]
[1773468820115,1.35278543,2088.8,2088.0,7.49928112]
[1773468835627,7.04561954,2088.8,2088.0,7.49928112]
[1773468835928,1.35278543,2088.8,2088.0,7.49928112]
[1773468836127,1.35278543,2088.8,2088.0,9.00449729]
[1773468837730,1.37675371,2088.7,2088.0,9.00449729]
[1773468839529,1.37675371,2088.7,2088.0,7.49928112]
[1773468849728,1.37951724,2088.8,2088.0,7.49928112]
[1773468853736,1.38301636,2089.0,2088.1,7.49928112]
[1773468855234,1.38301636,2089.0,2088.2,7.49928112]
[1773468855945,1.38343705,2089.2,2088.4,7.49928112]
[1773468856743,1.38343705,2089.2,2088.5,31.357]
[1773468856934,1.38873481,2089.2,2088.5,31.357]
[1773468866748,1.38873481,2089.2,2088.2,7.49928112]
[1773468874049,1.38873481,2089.2,2088.3,7.49928112]
[1773468880147,1.38873481,2089.2,2088.4,7.49928112]
[1773468886461,1.38873481,2089.2,2088.3,7.49928112]
[1773468886960,1.44751677,2089.1,2088.3,7.49928112]
[1773468910883,1.35494559,2088.8,2088.2,7.49928112]
[1773468911081,1.35494559,2088.8,2088.1,7.49928112]
[1773468912385,1.35494559,2088.8,2088.0,7.49928112]
[1773468935200,1.35494559,2088.8,2087.9,9.00353116]
[1773468935899,1.28475341,2088.4,2087.8,0.00335763]
[1773468964313,1.28475341,2088.4,2087.8,40.80335763]
[1773468965212,1.28475341,2088.4,2087.8,0.00335763]
[1773468965714,1.28475341,2088.4,2087.8,40.80335763]
[1773468966213,1.38132449,2088.1,2087.5,7.26604917]
[1773468966414,1.38818876,2088.0,2086.7,41.37930618]
[1773468966620,1.38818876,2088.0,2086.8,10.03230618]
[1773468966917,1.38818876,2087.9,2086.9,40.8]
[1773468967113,1.38818876,2087.8,2086.9,40.8]
[1773468967307,1.38818876,2087.8,2086.9,40.80472066]
[1773468969016,0.68925592,2087.3,2086.2,0.46103383]
[1773468969915,0.69263647,2087.3,2086.2,0.46564026]
[1773468970218,0.68925592,2087.2,2086.2,0.46564026]
[1773468971423,0.68925592,2087.2,2086.2,0.00460643]
[1773468972020,0.68925592,2087.2,2086.2,0.67004368]
[1773468974522,1.50527824,2086.7,2085.9,30.37015185]
[1773468974823,0.68925592,2086.6,2085.6,0.36591312]
[1773468975014,0.68925592,2086.6,2085.8,0.36591312]
[1773468975524,0.68925592,2086.6,2085.8,0.37177933]
[1773468976118,0.68925592,2086.6,2085.8,0.00586621]
[1773468982926,0.68925592,2086.6,2085.8,0.38143181]
[1773468987344,0.69901372,2087.2,2086.0,0.66573478]
[1773468993848,0.69901372,2087.1,2086.0,0.66573478]
[1773468995249,0.69901372,2087.0,2086.0,0.66573478]
[1773468996538,0.69901372,2086.9,2086.0,0.66573478]
[1773469015557,0.69901372,2086.9,2085.9,0.74457007]
[1773469015767,0.72998016,2086.7,2085.9,0.74457007]
[1773469015962,0.72998016,2086.6,2085.9,0.74457007]
[1773469016452,0.72998016,2086.6,2085.8,0.00586621]
[1773469016658,0.72998016,2086.4,2085.8,0.00586621]
[1773469016860,6.67654929,2086.4,2085.8,0.00586621]
[1773469017162,0.72998016,2086.3,2085.8,0.00586621]
[1773469017759,0.72998016,2086.3,2085.5,40.8]
[1773469018665,0.72998016,2086.3,2085.5,40.80354422]
[1773469019364,0.72998016,2086.2,2085.5,40.80354422]
[1773469019767,0.72998016,2086.2,2085.5,41.54811429]
[1773469023568,0.72998016,2086.2,2085.5,40.80354422]
[1773469024271,0.72998016,2086.2,2085.6,0.74457007]
[1773469027169,0.72998016,2086.4,2086.0,0.74457007]
[1773469028169,0.72998016,2086.8,2086.0,0.74457007]
[1773469032874,0.72998016,2086.8,2086.2,0.74457007]
[1773469044777,0.72998016,2086.8,2086.4,0.7618411]
[1773469045177,0.72998016,2086.8,2086.1,1.50847638]
[1773469045376,0.72998016,2086.8,2086.2,0.7618411]
[1773469056383,0.72998016,2086.8,2085.9,1.50847638]
[1773469056583,0.72998016,2086.8,2086.0,0.7618411]
[1773469058080,0.74927964,2086.6,2085.8,0.7618411]
[1773469058286,0.74927964,2086.5,2085.6,2.27031748]
[1773469058486,0.74927964,2086.5,2085.7,0.7618411]
[1773469060881,5.91357502,2086.6,2085.6,1.50847638]
[1773469060882,0.74927964,2086.7,2086.1,0.7618411]
[1773469062786,0.74927964,2086.2,2085.5,0.76538532]
[1773469065489,1.50847638,2086.1,2085.5,0.00354422]
[1773469065795,0.74927964,2085.4,2084.0,10.05157685]
[1773469065991,0.74927964,2084.9,2084.1,0.7618411]
[1773469066792,0.00557296,2084.9,2084.4,0.76136968]
[1773469067094,0.7409491,2085.1,2084.6,0.76136968]
[1773469067291,0.7409491,2085.1,2084.2,0.76136968]
[1773469067694,0.7409491,2085.0,2084.2,0.76136968]
[1773469067891,0.7409491,2084.8,2084.2,0.76136968]
[1773469069097,0.7409491,2084.8,2084.1,0.00375909]
[1773469069295,0.7409491,2084.6,2084.1,0.76512877]
[1773469069596,0.7409491,2084.9,2084.1,0.76512877]
[1773469070990,0.74440328,2085.0,2084.1,0.76512877]
[1773469071187,0.00345418,2085.0,2084.1,0.76512877]
[1773469071389,0.00345418,2085.0,2084.2,0.73058072]
[1773469071999,0.77525143,2085.0,2084.2,0.73058072]
[1773469073396,0.77179725,2085.2,2084.2,0.73058072]
[1773469074302,0.77179725,2085.7,2084.2,0.73058072]
[1773469074504,0.7770066,2085.7,2084.2,0.73058072]
[1773469081208,0.7770066,2085.7,2084.4,0.73058072]
[1773469083704,0.77179725,2085.6,2084.2,0.73058072]
[1773469085804,0.77179725,2085.4,2084.1,0.73433981]
[1773469086808,0.77179725,2085.3,2084.1,0.73433981]
[1773469087109,0.77179725,2085.2,2084.1,0.73433981]
[1773469089702,0.77179725,2085.2,2084.1,0.00375909]
[1773469090711,0.77179725,2085.2,2084.1,0.73433981]
[1773469090910,0.77179725,2085.1,2084.1,0.73433981]
[1773469091110,0.77179725,2085.0,2084.1,0.00375909]
[1773469091500,0.77179725,2085.0,2083.8,0.73058072]
[1773469092506,0.77179725,2085.0,2083.8,0.73474928]
[1773469093209,0.77179725,2084.9,2083.8,0.73474928]
[1773469093908,0.77179725,2084.7,2083.0,0.73058072]
[1773469094214,0.77179725,2084.3,2083.0,0.73058072]
[1773469094406,0.77179725,2084.3,2083.2,0.73058072]
[1773469094907,0.77179725,2084.3,2083.2,0.73537656]
[1773469096212,0.77179725,2084.4,2083.2,0.73537656]
[1773469096415,0.77179725,2084.8,2083.4,0.73058072]
[1773469096711,0.77179725,2084.8,2083.6,0.73058072]
[1773469097110,0.77179725,2084.9,2083.8,0.73058072]
[1773469099409,0.77179725,2085.4,2083.8,0.73058072]
[1773469100010,0.77179725,2085.4,2084.0,0.73058072]
[1773469104013,0.78288268,2084.9,2083.4,0.75612407]
[1773469104216,0.78288268,2084.7,2083.4,0.75612407]
[1773469104519,0.78288268,2084.7,2083.6,0.75612407]
[1773469108519,9.88536266,2084.8,2083.2,0.76091991]
[1773469108520,0.78288268,2084.5,2083.2,0.76091991]
[1773469108713,0.78288268,2084.4,2083.2,0.76091991]
[1773469108918,0.78288268,2084.3,2083.2,0.76091991]
[1773469109118,0.78288268,2084.3,2083.3,0.75612407]
[1773469110225,0.78288268,2084.3,2083.2,0.76091991]
[1773469110719,0.78288268,2084.2,2083.3,0.75612407]
[1773469110921,0.78288268,2084.1,2083.3,0.75612407]
[1773469119022,0.00498719,2084.2,2083.3,0.75612407]
[1773469122027,0.78786987,2084.2,2083.3,0.75612407]
[1773469124229,0.00498719,2084.2,2083.3,0.75612407]
[1773469124631,0.78288268,2084.5,2083.3,0.75612407]
[1773469125223,6.72872763,2084.7,2083.6,0.23993]
[1773469125431,0.78288268,2084.7,2083.7,0.75612407]
[1773469125727,0.00536408,2084.7,2083.7,0.75612407]
[1773469126228,0.78824676,2084.7,2083.9,0.75612407]
[1773469129126,0.00536408,2084.7,2083.9,0.75612407]
[1773469130823,0.00536408,2084.7,2084.1,0.79785014]
[1773469131128,0.78550943,2084.9,2084.1,0.79785014]
[1773469132030,0.7902962,2084.9,2084.1,0.79785014]
[1773469133732,0.74741403,2085.1,2084.1,0.79785014]
[1773469134824,0.7513709,2085.1,2084.1,0.79785014]
[1773469135734,0.7513709,2085.1,2084.2,0.81620426]
[1773469136335,0.7513709,2085.1,2084.4,0.81620426]
[1773469139734,0.00395687,2085.1,2084.4,0.81620426]
[1773469141640,0.23968,2085.8,2084.4,0.81620426]
[1773469141846,0.74741403,2085.7,2084.4,0.81620426]
[1773469142644,0.75089485,2085.7,2084.4,0.81620426]
[1773469143245,0.75089485,2085.7,2084.6,0.81620426]
[1773469145243,0.74741403,2085.6,2084.7,0.81620426]
[1773469145539,0.74741403,2085.6,2084.7,0.82058148]
[1773469147848,0.00348082,2085.7,2084.7,0.82058148]
[1773469148152,0.75089485,2085.7,2084.7,0.82058148]
[1773469149353,0.74741403,2086.2,2084.9,0.81620426]
[1773469149549,6.68620702,2086.4,2085.0,0.23977]
[1773469149851,0.74741403,2086.4,2085.2,0.81620426]
[1773469150050,0.74741403,2086.4,2085.4,0.81620426]
[1773469150454,0.75198686,2086.4,2085.4,0.81620426]
[1773469156861,0.75198686,2086.4,2085.5,0.81620426]
[1773469157560,0.74741403,2086.2,2085.5,0.81620426]
[1773469161358,0.77444546,2086.4,2085.5,0.81620426]
[1773469163668,0.76987263,2086.2,2085.5,0.81620426]
[1773469165569,0.76987263,2085.6,2085.2,0.76905423]
[1773469165770,0.76987263,2085.6,2085.1,0.76905423]
[1773469166566,0.76987263,2085.6,2085.2,41.56905423]
[1773469167171,0.76987263,2085.6,2085.3,0.76905423]
[1773469167469,0.76987263,2085.8,2085.3,0.76905423]
[1773469169370,0.76987263,2086.0,2085.3,0.76905423]
[1773469170266,0.76987263,2085.8,2085.3,0.76905423]
[1773469170471,0.76987263,2085.6,2085.2,0.76905423]
[1773469170973,0.76987263,2085.6,2085.0,30.959]
[1773469171367,0.76987263,2085.6,2085.0,31.72805423]
[1773469171566,0.76987263,2085.6,2085.1,0.76905423]
[1773469172773,0.76987263,2085.8,2085.1,0.76905423]
[1773469174770,0.76987263,2085.8,2085.0,30.959]
[1773469175073,0.76987263,2085.8,2085.1,0.76905423]
[1773469187881,1.09602038,2085.1,2083.8,1.05139273]
[1773469188082,1.09602038,2084.6,2083.8,1.05139273]
[1773469188285,1.50839878,2084.7,2083.9,40.8]
[1773469188286,1.09602038,2084.7,2083.9,40.8]
[1773469188485,1.09602038,2084.7,2084.0,1.05139273]
[1773469188887,1.10189265,2084.7,2084.0,1.05483274]
[1773469193887,1.10189265,2084.7,2084.2,1.00218321]
[1773469195693,1.10189265,2084.7,2084.1,40.8]
[1773469195984,0.99385172,2084.6,2084.1,40.8]
[1773469197087,0.99385172,2084.6,2084.0,1.00562322]
[1773469197691,0.99385172,2084.6,2084.1,1.00218321]
[1773469198983,0.99385172,2085.1,2084.1,1.00218321]
[1773469199989,0.99870622,2085.1,2084.1,1.00218321]
[1773469201293,0.99870622,2085.1,2084.0,0.00344001]
[1773469201796,0.99870622,2085.1,2084.0,1.00562322]
[1773469209600,0.0048545,2085.1,2084.0,1.00562322]
[1773469214397,0.99870622,2085.1,2084.0,1.00562322]
[1773469215296,0.99385172,2085.0,2084.0,1.00562322]
[1773469216001,0.99385172,2084.9,2084.0,1.00562322]
[1773469217197,0.99385172,2084.7,2084.0,1.00562322]
[1773469217500,0.99385172,2084.6,2084.0,1.00562322]
[1773469222004,0.99385172,2084.6,2084.0,0.00344001]
[1773469222210,0.99385172,2084.6,2084.0,0.98244765]
[1773469225105,0.96948688,2084.8,2084.0,0.98244765]
[1773469225498,0.96948688,2084.6,2083.4,0.97900764]
[1773469225709,0.96948688,2084.2,2083.4,0.73344234]
[1773469225904,0.96948688,2084.1,2083.4,40.8]
[1773469226105,0.96948688,2084.1,2083.5,0.89169657]
[1773469226506,0.96948688,2084.1,2083.5,0.89778278]
[1773469226708,0.96948688,2084.1,2083.5,0.00608621]
[1773469227113,0.96948688,2084.1,2083.4,40.8]
[1773469227312,0.96948688,2084.0,2083.2,0.87928544]
[1773469227712,0.96948688,2084.0,2083.3,0.88319129]
[1773469228114,0.96948688,2084.0,2083.3,0.88737516]
[1773469228718,0.96948688,2084.2,2083.3,0.88737516]
[1773469231421,0.96948688,2084.7,2083.3,0.88737516]
[1773469231712,0.96948688,2084.6,2083.3,0.80291283]
[1773469231915,0.96948688,2084.5,2083.3,0.80291283]
[1773469232113,0.96948688,2084.4,2083.3,0.80291283]
[1773469237623,0.96948688,2084.4,2083.4,0.76633572]
[1773469249829,0.91240992,2084.8,2083.4,0.76633572]
[1773469250735,0.91240992,2084.8,2083.6,0.70940829]
[1773469257138,0.905034,2085.0,2083.8,0.68578034]
[1773469257340,0.905034,2085.0,2084.0,0.68578034]
[1773469258137,0.905034,2085.0,2084.2,0.67713837]
[1773469261843,0.905034,2085.0,2084.1,40.8]
[1773469262047,0.905034,2085.0,2083.7,0.66194008]
[1773469262439,0.905034,2085.0,2083.9,0.65815988]
[1773469262643,0.905034,2085.0,2083.8,40.8]
[1773469262848,0.905034,2084.9,2083.8,40.8]
[1773469263046,0.905034,2084.8,2083.8,40.8]
[1773469263544,0.905034,2084.6,2083.8,40.8]
[1773469263947,0.905034,2084.2,2083.3,0.65650029]
[1773469264147,0.905034,2084.0,2083.3,0.65650029]
[1773469264446,0.905034,2084.0,2083.5,0.64852579]
[1773469272152,6.15810138,2084.6,2083.5,0.64852579]
[1773469272346,0.905034,2084.5,2083.5,0.64852579]
[1773469285659,0.905034,2084.5,2083.7,0.93082102]
[1773469297072,0.905034,2084.5,2083.9,0.93082102]
[1773469298579,0.87157306,2084.6,2083.9,0.93082102]
[1773469298775,0.0048545,2085.1,2084.5,0.93082102]
[1773469298972,0.87157306,2085.0,2084.5,0.93082102]
[1773469299674,0.67195526,2085.1,2084.5,0.93082102]
[1773469299874,0.67195526,2085.1,2084.7,0.93082102]
[1773469300983,0.0644514,2085.4,2084.7,0.93082102]
[1773469301984,0.06865604,2085.4,2084.7,0.93082102]
[1773469303589,0.06865604,2085.4,2084.9,0.93082102]
[1773469303787,0.06865604,2085.4,2084.9,0.9367322]
[1773469310481,0.00420464,2085.4,2084.9,0.9367322]
[1773469311492,0.00420464,2085.4,2085.1,0.91217849]
[1773469311687,0.08835091,2085.7,2085.1,0.91217849]
[1773469312786,0.09332137,2085.7,2085.1,0.91217849]
[1773469314695,0.00497046,2085.7,2085.1,0.91217849]
[1773469315490,0.08759761,2085.7,2085.1,0.91217849]
[1773469317191,0.00497046,2085.7,2085.3,0.90990857]
[1773469317588,0.06567697,2085.7,2085.3,0.90990857]
[1773469320794,0.06567697,2085.7,2085.2,0.90621144]
[1773469322902,0.06567697,2085.7,2085.0,0.90689952]
[1773469323499,0.06567697,2085.7,2085.1,0.90677216]
[1773469331205,5.95710192,2086.2,2085.1,0.90677216]
[1773469331706,0.23962,2086.3,2085.1,0.90677216]
[1773469332408,6.16868136,2086.3,2085.1,0.90677216]
[1773469332607,5.9233159,2086.2,2085.1,0.90677216]
[1773469332798,0.24536546,2086.3,2085.1,0.90677216]
[1773469333203,6.16560795,2086.3,2085.1,0.90677216]
[1773469334311,5.92024249,2086.2,2085.1,0.90677216]
[1773469334613,0.24536546,2086.3,2085.1,0.90677216]
[1773469335112,0.24536546,2086.3,2085.2,0.91553902]
[1773469335706,0.00574546,2086.3,2085.2,0.91553902]
[1773469344417,5.91193498,2086.3,2085.2,0.91553902]
[1773469344616,0.00574546,2086.3,2085.2,0.91553902]
[1773469356631,5.91193691,2086.3,2085.2,0.91553902]
[1773469356832,0.00574546,2086.3,2085.2,0.91553902]
[1773469370039,5.88997745,2086.3,2085.2,0.91553902]
[1773469370231,0.00574546,2086.3,2085.2,0.91553902]
[1773469374534,5.88977733,2086.3,2085.2,0.91553902]
[1773469374736,0.00574546,2086.3,2085.2,0.91553902]
[1773469380940,0.00574546,2086.3,2085.3,0.89269552]
[1773469383642,0.00574546,2086.3,2085.5,0.89858812]
[1773469383643,5.88988146,2086.3,2085.5,0.89858812]
[1773469383940,0.00574546,2086.3,2085.5,0.89858812]
[1773469385443,5.88964557,2086.3,2085.5,0.89858812]
[1773469385642,0.00574546,2086.3,2085.5,0.89858812]
[1773469386745,5.89005676,2086.3,2085.5,0.89858812]
[1773469386936,0.00574546,2086.3,2085.5,0.89858812]
[1773469387541,1.5142583,2086.3,2085.5,0.89858812]
[1773469406459,0.00574546,2086.3,2085.5,0.89858812]
[1773469406662,0.00574546,2086.3,2085.8,0.90066579]
[1773469406867,5.88948576,2086.6,2085.8,0.90066579]
[1773469407063,5.51451641,2086.9,2085.8,0.90066579]
[1773469407264,5.88984198,2086.8,2085.8,0.90066579]
[1773469407768,5.89545806,2086.8,2085.8,0.90066579]
[1773469408568,5.89545806,2086.8,2085.9,1.50851284]
[1773469408767,5.89545806,2086.8,2086.0,0.91862069]
[1773469408970,5.88984198,2086.7,2086.0,0.91862069]
[1773469409169,0.00561608,2086.8,2086.0,0.91862069]
[1773469412875,1.50851284,2086.5,2085.6,0.91881861]
[1773469413575,1.50851284,2086.3,2085.6,0.91881861]
[1773469413771,5.88254625,2086.8,2086.1,0.92213451]
[1773469414073,0.00561608,2086.8,2086.1,0.92213451]
[1773469429577,0.49474257,2086.5,2085.4,42.30851284]
[1773469429778,0.49474257,2086.3,2085.5,0.81455536]
[1773469432283,0.00561608,2086.8,2085.7,0.79232223]
[1773469432579,0.83013782,2086.8,2086.0,0.79232223]
[1773469432981,0.82392388,2086.6,2086.0,0.79232223]
[1773469433178,0.83837834,2086.4,2086.0,0.1204804]
[1773469433381,0.83837834,2086.4,2085.6,0.79232223]
[1773469433585,0.83837834,2086.2,2085.6,0.79232223]
[1773469440188,0.83837834,2086.2,2085.4,0.79232223]
[1773469440490,0.83837834,2086.2,2084.9,1.51442402]
[1773469440491,0.83837834,2085.6,2084.9,0.79823341]
[1773469441088,0.83837834,2085.2,2084.9,0.00591118]
[1773469441288,0.83837834,2085.0,2084.4,0.79232223]
[1773469441483,0.83837834,2085.0,2083.3,12.54038273]
[1773469441484,0.83837834,2084.8,2084.1,0.79232223]
[1773469441683,0.83837834,2084.6,2083.4,10.04744149]
[1773469441883,0.83837834,2084.2,2083.5,0.79232223]
[1773469442289,0.83837834,2084.2,2083.5,41.59703319]
[1773469442689,0.83837834,2084.2,2083.6,0.79232223]
[1773469443087,0.83837834,2084.2,2083.7,0.79232223]
[1773469443284,0.83837834,2084.3,2083.5,0.79703319]
[1773469451899,0.83837834,2084.3,2083.5,41.59703319]
[1773469452404,0.83837834,2084.3,2083.5,0.00471096]
[1773469454300,0.83837834,2084.3,2082.7,0.79232223]
[1773469454901,0.83837834,2084.0,2082.8,0.79232223]
[1773469455316,0.83837834,2084.0,2082.8,0.79613789]
[1773469456304,0.83837834,2083.9,2082.8,0.79613789]
[1773469457401,1.53359607,2084.6,2082.8,0.79613789]
[1773469457402,0.83837834,2084.3,2082.8,0.79613789]
[1773469457704,0.83837834,2084.3,2082.9,0.79232223]
[1773469458511,0.83837834,2084.1,2082.8,0.79613789]
[1773469478110,6.64227836,2084.1,2082.8,0.79613789]
[1773469478310,6.57782803,2084.0,2082.8,0.79613789]
[1773469478512,0.77392801,2084.0,2082.8,0.79613789]
[1773469479210,0.77392801,2083.9,2082.8,0.79613789]
[1773469483308,0.77392801,2083.9,2082.9,0.77141724]
[1773469483513,0.77392801,2084.1,2082.9,0.77141724]
[1773469487614,0.77392801,2084.1,2083.1,0.68877907]
[1773469487809,0.77392801,2084.1,2083.3,0.68877907]
[1773469493416,0.77392801,2084.1,2083.4,0.65572411]
[1773469493821,0.66375054,2084.4,2083.4,0.65572411]
[1773469495121,0.66375054,2084.3,2083.4,0.65572411]
[1773469495322,0.66375054,2084.1,2083.2,0.65572411]
[1773469497231,0.66375054,2084.1,2083.3,0.65572411]
[1773469497527,0.66375054,2084.0,2083.3,0.65572411]
[1773469498323,0.66375054,2084.0,2082.9,0.65572411]
[1773469509535,0.66375054,2084.0,2083.2,0.65572411]
[1773469512838,1.51145123,2083.6,2083.0,0.65572411]
[1773469513034,0.66375054,2083.5,2083.0,0.65572411]
[1773469515245,0.66933651,2083.6,2083.1,0.65572411]
[1773469515644,0.00558597,2083.6,2083.1,0.65572411]
[1773469516137,0.66375054,2083.8,2083.1,0.65572411]
[1773469517243,0.66853644,2083.8,2083.1,0.65572411]
[1773469523451,0.0047859,2083.8,2083.2,0.64041968]
[1773469523647,0.0047859,2083.8,2082.8,31.21481566]
[1773469523648,0.0047859,2083.8,2083.4,0.64041968]
[1773469524148,0.68418177,2083.9,2083.4,0.64041968]
[1773469524548,0.68418177,2084.1,2083.4,0.64041968]
[1773469525050,0.68840731,2084.1,2083.4,0.64041968]
[1773469525944,0.68840731,2084.1,2083.5,0.64041968]
[1773469526650,0.00422554,2084.1,2083.7,0.64041968]
[1773469526948,0.68418177,2084.2,2083.7,0.64041968]
[1773469527951,0.68876626,2084.2,2083.7,0.64041968]
[1773469530343,0.00458449,2084.2,2083.7,0.64041968]
[1773469531554,0.68418177,2084.5,2083.7,0.64041968]
[1773469532554,0.68912827,2084.5,2083.7,0.64041968]
[1773469533154,0.68912827,2084.5,2083.9,0.64041968]
[1773469533351,0.0049465,2084.5,2084.1,0.64041968]
[1773469533555,0.68418177,2084.7,2084.1,0.64041968]
[1773469534157,0.68418177,2084.7,2084.2,0.64041968]
[1773469534654,0.68992432,2084.7,2084.2,0.64041968]
[1773469534953,0.60028076,2084.7,2084.2,0.64041968]
[1773469535651,0.00574255,2084.7,2084.2,0.64041968]
[1773469536049,0.68992432,2084.7,2084.2,0.64041968]
[1773469536450,0.00574255,2084.7,2084.2,0.64041968]
[1773469536954,0.68418177,2084.9,2084.3,0.64041968]
[1773469537857,0.68987963,2084.9,2084.3,0.64606725]
[1773469541155,0.68418177,2084.8,2084.0,0.64041968]
[1773469541457,0.68418177,2084.2,2083.3,0.64041968]
[1773469541652,0.68418177,2084.2,2083.3,41.44041968]
[1773469542253,0.68418177,2084.0,2083.3,41.44624301]
[1773469543359,0.68418177,2084.0,2083.4,0.64041968]
[1773469544461,0.68418177,2084.0,2083.3,0.64624301]
[1773469544860,0.68418177,2084.0,2083.4,0.64041968]
[1773469547959,0.68418177,2084.0,2083.3,0.00582333]
[1773469548354,0.92407177,2084.0,2082.9,0.62530627]
[1773469548562,0.92407177,2084.0,2082.8,0.62530627]
[1773469548563,0.64076985,2083.9,2082.8,0.62530627]
[1773469549160,0.64076985,2083.8,2082.8,0.62530627]
[1773469549462,0.64076985,2083.7,2082.8,0.63114553]
[1773469557970,0.64076985,2083.7,2082.8,0.00583926]
[1773469560466,0.64076985,2083.7,2082.8,0.6380422]
[1773469560868,0.59651674,2083.6,2082.8,0.6380422]
[1773469561570,0.59651674,2083.6,2082.8,0.00583926]
[1773469562773,0.59651674,2083.6,2082.8,0.6380422]
[1773469570284,0.59651674,2083.5,2082.8,0.6380422]
[1773469572687,0.59651674,2083.5,2082.1,10.04744149]
[1773469572893,0.59651674,2083.1,2082.2,0.38473858]
[1773469573089,0.59651674,2082.9,2082.0,0.63220294]
[1773469573688,0.60091482,2082.9,2082.0,0.63608664]
[1773469574897,0.60091482,2082.9,2081.4,10.04744149]
[1773469574898,0.60091482,2082.9,2081.2,0.63220294]
[1773469575086,0.59651674,2082.7,2081.2,0.63220294]
[1773469575394,0.59651674,2082.6,2081.4,0.63220294]
[1773469576091,0.59651674,2082.4,2081.4,0.63716231]
[1773469576490,0.59651674,2082.3,2081.4,0.63716231]
[1773469576688,0.59651674,2082.2,2081.4,0.63716231]
[1773469577089,0.59651674,2082.2,2081.4,0.00495937]
[1773469577291,0.59651674,2082.2,2081.4,0.63716231]
[1773469578192,0.59651674,2082.2,2081.4,0.00495937]
[1773469578395,0.59651674,2082.2,2081.0,0.63220294]
[1773469579395,0.59651674,2082.2,2081.0,0.63556477]
[1773469580096,0.59651674,2082.7,2081.0,0.63556477]
[1773469581996,0.59651674,2082.7,2081.2,0.60266021]
[1773469587503,0.59651674,2082.7,2081.4,0.60266021]
[1773469591403,0.59651674,2082.7,2081.6,0.60266021]
[1773469595305,0.58456671,2082.9,2081.7,0.60266021]
[1773469597206,0.58016863,2083.5,2081.9,0.60266021]
[1773469597410,0.58016863,2083.5,2082.1,0.60266021]
[1773469597909,0.58016863,2083.5,2082.3,0.60266021]
[1773469598210,0.58495511,2083.5,2082.5,0.60266021]
[1773469598407,0.58495511,2083.5,2082.5,0.60816724]
[1773469609913,3.9722978,2084.3,2082.5,0.60816724]
[1773469610111,0.61657427,2083.6,2082.5,0.60816724]
[1773469611018,0.62228437,2083.6,2082.5,0.60816724]
[1773469619518,0.59007162,2083.6,2082.5,0.60816724]
[1773469625318,0.59007162,2083.6,2082.7,0.58063624]
[1773469625518,0.074972,2083.8,2082.7,0.58063624]
[1773469626321,5.96174108,2084.0,2082.7,0.58063624]
[1773469626520,0.08339327,2084.0,2082.7,0.58063624]
[1773469627223,0.08339327,2084.0,2082.8,0.58063624]
[1773469627524,0.08339327,2084.0,2083.0,0.58063624]
[1773469627828,0.08247551,2083.9,2083.0,0.58063624]
[1773469628024,0.08247551,2083.8,2083.0,0.58063624]
[1773469636531,5.97799296,2083.9,2083.0,0.58063624]
[1773469636732,0.08868385,2083.9,2083.0,0.58063624]
[1773469637025,4.00509325,2084.7,2083.8,2.38113949]
[1773469637226,0.58436152,2085.4,2084.6,4.00982545]
[1773469637623,0.58436152,2085.0,2084.6,4.00982545]
[1773469637829,0.58436152,2085.0,2084.0,7.53868952]
[1773469638033,0.22873482,2084.4,2083.8,7.31432487]
[1773469638329,0.22873482,2084.4,2083.7,0.58063624]
[1773469638529,0.58436152,2084.9,2083.8,30.571]
[1773469638728,0.58436152,2084.9,2083.9,0.62427248]
[1773469639128,0.58436152,2084.9,2083.9,0.62843936]
[1773469641425,0.00471523,2085.0,2083.9,0.62843936]
[1773469641831,1.26626008,2085.0,2083.9,0.62843936]
[1773469645035,1.26154485,2084.9,2083.9,0.62843936]
[1773469645736,1.26154485,2084.8,2083.9,0.62843936]
[1773469646138,1.26154485,2084.6,2083.9,0.62843936]
[1773469647433,1.26154485,2084.9,2083.9,0.62843936]
[1773469647634,1.26154485,2084.8,2083.9,0.62843936]
[1773469648134,1.26154485,2084.7,2083.9,0.62843936]
[1773469649134,1.26154485,2084.6,2083.9,0.62843936]
[1773469653141,1.26154485,2084.5,2083.9,0.62843936]
[1773469653539,1.26154485,2084.3,2083.9,0.00416688]
[1773469653941,13.25994485,2084.3,2083.9,0.00416688]
[1773469654239,1.26154485,2084.2,2083.9,1.26288138]
[1773469654943,1.26154485,2084.9,2083.9,1.26288138]
[1773469655135,1.26154485,2084.4,2083.9,1.26288138]
[1773469655535,13.25994485,2084.3,2083.9,1.26288138]
[1773469655838,1.26154485,2084.3,2083.9,1.26288138]
[1773469656145,13.25994485,2084.3,2083.9,1.26288138]
[1773469656947,1.26154485,2084.5,2083.9,1.26288138]
[1773469657242,1.26154485,2084.4,2083.9,1.26288138]
[1773469657635,11.9984,2084.3,2083.9,1.26288138]
[1773469657842,1.26154485,2084.4,2083.9,1.26288138]
[1773469658038,11.9984,2084.3,2083.9,1.26288138]
[1773469659447,1.26154485,2084.4,2083.9,1.26288138]
[1773469659948,11.9984,2084.3,2083.9,1.26288138]
[1773469660245,1.26154485,2084.2,2083.9,0.00416688]
[1773469660449,13.25994485,2084.2,2083.9,1.26288138]
[1773469660648,1.26154485,2084.2,2083.9,1.26288138]
[1773469661052,11.9984,2084.1,2083.9,1.26288138]
[1773469661650,1.26154485,2084.2,2083.9,1.26288138]
[1773469662052,11.9984,2084.1,2083.9,1.26288138]
[1773469662250,1.26154485,2084.0,2083.6,32.5817145]
[1773469662552,1.26154485,2083.9,2083.6,31.323]
[1773469662951,11.9984,2083.7,2083.4,1.2587145]
[1773469663153,1.26154485,2083.8,2083.4,1.2587145]
[1773469663350,1.26154485,2083.8,2083.4,1.26277187]
[1773469663546,11.9984,2083.7,2083.4,1.26277187]
[1773469663753,13.25994485,2083.7,2083.4,1.26277187]
[1773469663957,1.26154485,2083.7,2083.4,1.26277187]
[1773469664354,13.25994485,2083.7,2083.4,1.26277187]
[1773469664647,1.26154485,2083.6,2083.3,40.8]
[1773469664851,1.26154485,2083.6,2083.1,1.2587145]
[1773469665051,1.26154485,2083.6,2083.2,1.2587145]
[1773469665252,11.9984,2083.5,2083.3,1.2587145]
[1773469665656,1.26154485,2084.2,2083.4,1.2587145]
[1773469665855,1.26725398,2084.2,2083.4,1.26216284]
[1773469666460,1.26725398,2084.2,2083.5,1.2587145]
[1773469667260,0.00570913,2084.2,2083.6,9.19880816]
[1773469667458,1.69330038,2084.2,2083.8,1.70318758]
[1773469667861,1.69330038,2084.2,2083.8,7.72129802]
[1773469668662,1.69330038,2084.2,2083.9,1.70318758]